[Event "Titled Tuesday Blitz February 15 Early 2022"]
[White "Weetik, Vjacheslav"]
[Black "Dushyant Sharma"]
[WhiteFideId "4153472"]
[BlackFideId "25065130"]
[WhiteElo "2469"]
[BlackElo "2012"]
[Result "1-0"]
[Round "09"]
[TimeControl "180+1"]
[Date "2022.02.15"]
[WhiteClock "0:00:15"]
[BlackClock "0:00:19"]

1. d4 {[%clk 0:02:57]}  d5 {[%clk 0:03:00]} 2. Bf4 {[%clk 0:02:57]}  e6 {[%clk 0:02:59]} 3. e3 {[%clk 0:02:57]}  Bd6 {[%clk 0:02:59]} 4. Nd2 {[%clk 0:02:57]}  f5 {[%clk 0:02:57]} 5. Ngf3 {[%clk 0:02:35]}  Nf6 {[%clk 0:02:56]} 6. g3 {[%clk 0:02:31]}  O-O {[%clk 0:02:56]} 7. Bg2 {[%clk 0:02:31]}  c5 {[%clk 0:02:55]} 8. c3 {[%clk 0:02:27]}  Nc6 {[%clk 0:02:55]} 9. O-O {[%clk 0:02:25]}  b6 {[%clk 0:02:56]} 10. Ne5 {[%clk 0:02:16]}  Qc7 {[%clk 0:02:49]} 11. Nxc6 {[%clk 0:02:09]}  Qxc6 {[%clk 0:02:49]} 12. Bxd6 {[%clk 0:02:07]}  Qxd6 {[%clk 0:02:49]} 13. Nc4 {[%clk 0:02:04]}  Qc7 {[%clk 0:02:36]} 14. Ne5 {[%clk 0:02:04]}  Nd7 {[%clk 0:02:30]} 15. Nd3 {[%clk 0:01:59]}  Ba6 {[%clk 0:02:29]} 16. Re1 {[%clk 0:02:00]}  Rae8 {[%clk 0:02:28]} 17. Nf4 {[%clk 0:01:48]}  g5 {[%clk 0:02:18]} 18. Nd3 {[%clk 0:01:12]}  Bxd3 {[%clk 0:02:13]} 19. Qxd3 {[%clk 0:01:12]}  c4 {[%clk 0:02:14]} 20. Qd2 {[%clk 0:01:07]}  h6 {[%clk 0:02:06]} 21. b3 {[%clk 0:01:05]}  b5 {[%clk 0:02:03]} 22. a4 {[%clk 0:00:59]}  cxb3 {[%clk 0:01:45]} 23. axb5 {[%clk 0:00:59]}  Rc8 {[%clk 0:01:35]} 24. Rec1 {[%clk 0:00:59]}  Nb6 {[%clk 0:01:21]} 25. Qb2 {[%clk 0:00:56]}  f4 {[%clk 0:01:21]} 26. exf4 {[%clk 0:00:55]}  gxf4 {[%clk 0:01:21]} 27. Qxb3 {[%clk 0:00:53]}  Nc4 {[%clk 0:01:01]} 28. Qc2 {[%clk 0:00:52]}  Qg7 {[%clk 0:00:55]} 29. Re1 {[%clk 0:00:50]}  Rf6 {[%clk 0:00:51]} 30. Ra6 {[%clk 0:00:47]}  Nb6 {[%clk 0:00:46]} 31. Bh3 {[%clk 0:00:40]}  Re8 {[%clk 0:00:43]} 32. Qe2 {[%clk 0:00:25]}  Kh8 {[%clk 0:00:38]} 33. Qh5 {[%clk 0:00:22]}  Re7 {[%clk 0:00:39]} 34. Ra2 {[%clk 0:00:19]}  Nc4 {[%clk 0:00:38]} 35. Rae2 {[%clk 0:00:19]}  fxg3 {[%clk 0:00:24]} 36. hxg3 {[%clk 0:00:19]}  Qg8 {[%clk 0:00:20]} 37. Qh4 {[%clk 0:00:15]}  Rg6 {[%clk 0:00:19]} 38. Qxe7 {[%clk 0:00:15]} 1-0


[Site "https://www.chess.com"]

[Event "Titled Tuesday Blitz February 15 Early 2022"]
[White "Xiong, Jeffery"]
[Black "Narayanan.S.L"]
[WhiteFideId "2047640"]
[BlackFideId "5058422"]
[WhiteElo "2727"]
[BlackElo "2494"]
[Result "0-1"]
[Round "09"]
[TimeControl "180+1"]
[Date "2022.02.15"]
[WhiteClock "0:00:02"]
[BlackClock "0:00:10"]

1. e4 {[%clk 0:03:00]}  e6 {[%clk 0:02:59]} 2. d4 {[%clk 0:03:00]}  d5 {[%clk 0:03:00]} 3. e5 {[%clk 0:03:01]}  c5 {[%clk 0:03:00]} 4. c3 {[%clk 0:03:01]}  Qb6 {[%clk 0:02:58]} 5. Nf3 {[%clk 0:03:01]}  cxd4 {[%clk 0:02:58]} 6. cxd4 {[%clk 0:03:01]}  Bd7 {[%clk 0:02:58]} 7. Nc3 {[%clk 0:03:00]}  Bb4 {[%clk 0:02:59]} 8. Bd3 {[%clk 0:02:53]}  Bb5 {[%clk 0:02:58]} 9. O-O {[%clk 0:02:33]}  Bxd3 {[%clk 0:02:53]} 10. Qxd3 {[%clk 0:02:29]}  Ne7 {[%clk 0:02:37]} 11. Nh4 {[%clk 0:02:29]}  Nbc6 {[%clk 0:02:28]} 12. Nb5 {[%clk 0:02:20]}  Ng6 {[%clk 0:02:22]} 13. Nxg6 {[%clk 0:01:27]}  hxg6 {[%clk 0:02:21]} 14. a3 {[%clk 0:01:27]}  Be7 {[%clk 0:02:20]} 15. Be3 {[%clk 0:01:28]}  O-O {[%clk 0:02:19]} 16. h4 {[%clk 0:01:22]}  a6 {[%clk 0:02:11]} 17. Nc3 {[%clk 0:01:22]}  Rfd8 {[%clk 0:02:08]} 18. Kh2 {[%clk 0:01:00]}  Nxe5 {[%clk 0:01:50]} 19. dxe5 {[%clk 0:00:57]}  d4 {[%clk 0:01:50]} 20. Bg5 {[%clk 0:00:26]}  Bxg5 {[%clk 0:01:48]} 21. hxg5 {[%clk 0:00:26]}  dxc3 {[%clk 0:01:49]} 22. Qxc3 {[%clk 0:00:26]}  Rac8 {[%clk 0:01:49]} 23. Qg3 {[%clk 0:00:16]}  Rd5 {[%clk 0:01:22]} 24. Rac1 {[%clk 0:00:14]}  Rcd8 {[%clk 0:01:22]} 25. Rc2 {[%clk 0:00:11]}  Rd3 {[%clk 0:01:13]} 26. f3 {[%clk 0:00:11]}  a5 {[%clk 0:01:10]} 27. Rfc1 {[%clk 0:00:11]}  Qe3 {[%clk 0:01:09]} 28. Rc7 {[%clk 0:00:07]}  b5 {[%clk 0:01:07]} 29. R1c3 {[%clk 0:00:03]}  Rxc3 {[%clk 0:01:03]} 30. Rxc3 {[%clk 0:00:04]}  Qd2 {[%clk 0:01:03]} 31. Rc7 {[%clk 0:00:04]}  Qxb2 {[%clk 0:01:02]} 32. Qf4 {[%clk 0:00:05]}  Rf8 {[%clk 0:01:02]} 33. Rb7 {[%clk 0:00:05]}  a4 {[%clk 0:01:01]} 34. Qe4 {[%clk 0:00:02]}  Qxa3 {[%clk 0:00:44]} 35. Rxb5 {[%clk 0:00:02]}  Qa1 {[%clk 0:00:44]} 36. Ra5 {[%clk 0:00:01]}  a3 {[%clk 0:00:44]} 37. Ra7 {[%clk 0:00:01]}  Qc1 {[%clk 0:00:37]} 38. f4 {[%clk 0:00:01]}  Rc8 {[%clk 0:00:31]} 39. Qa4 {[%clk 0:00:02]}  Rc4 {[%clk 0:00:26]} 40. Qe8+ {[%clk 0:00:01]}  Kh7 {[%clk 0:00:27]} 41. Qxf7 {[%clk 0:00:01]}  Qxf4+ {[%clk 0:00:25]} 42. Qxf4 {[%clk 0:00:02]}  Rxf4 {[%clk 0:00:26]} 43. Rxa3 {[%clk 0:00:03]}  Rf5 {[%clk 0:00:26]} 44. Re3 {[%clk 0:00:02]}  Rxg5 {[%clk 0:00:26]} 45. Kh3 {[%clk 0:00:03]}  Rf5 {[%clk 0:00:24]} 46. Kg4 {[%clk 0:00:04]}  g5 {[%clk 0:00:24]} 47. g3 {[%clk 0:00:04]}  Kg6 {[%clk 0:00:25]} 48. Re1 {[%clk 0:00:04]}  Rf2 {[%clk 0:00:25]} 49. Re3 {[%clk 0:00:05]}  Rc2 {[%clk 0:00:24]} 50. Re4 {[%clk 0:00:03]}  Rc3 {[%clk 0:00:24]} 51. Ra4 {[%clk 0:00:01]}  Re3 {[%clk 0:00:23]} 52. Ra5 {[%clk 0:00:01]}  Kh6 {[%clk 0:00:22]} 53. Rb5 {[%clk 0:00:01]}  Kg6 {[%clk 0:00:20]} 54. Ra5 {[%clk 0:00:02]}  Re4+ {[%clk 0:00:21]} 55. Kf3 {[%clk 0:00:03]}  Kf5 {[%clk 0:00:21]} 56. Ra7 {[%clk 0:00:04]}  g4+ {[%clk 0:00:22]} 57. Kf2 {[%clk 0:00:04]}  g6 {[%clk 0:00:21]} 58. Rf7+ {[%clk 0:00:01]}  Kxe5 {[%clk 0:00:22]} 59. Rf8 {[%clk 0:00:02]}  Rc4 {[%clk 0:00:21]} 60. Rf7 {[%clk 0:00:02]}  Rc2+ {[%clk 0:00:20]} 61. Kf1 {[%clk 0:00:02]}  Rc3 {[%clk 0:00:20]} 62. Kg2 {[%clk 0:00:03]}  Rf3 {[%clk 0:00:20]} 63. Ra7 {[%clk 0:00:01]}  Kf5 {[%clk 0:00:18]} 64. Ra4 {[%clk 0:00:01]}  e5 {[%clk 0:00:18]} 65. Ra8 {[%clk 0:00:02]}  Rd3 {[%clk 0:00:18]} 66. Rf8+ {[%clk 0:00:02]}  Ke4 {[%clk 0:00:18]} 67. Re8 {[%clk 0:00:03]}  Rd2+ {[%clk 0:00:19]} 68. Kg1 {[%clk 0:00:03]}  Rd6 {[%clk 0:00:19]} 69. Kg2 {[%clk 0:00:03]}  Kd4 {[%clk 0:00:19]} 70. Kf2 {[%clk 0:00:03]}  Rf6+ {[%clk 0:00:16]} 71. Ke2 {[%clk 0:00:01]}  Rf3 {[%clk 0:00:16]} 72. Rg8 {[%clk 0:00:01]}  Rxg3 {[%clk 0:00:16]} 73. Rxg6 {[%clk 0:00:02]}  Ke4 {[%clk 0:00:15]} 74. Kf2 {[%clk 0:00:02]}  Rf3+ {[%clk 0:00:16]} 75. Kg2 {[%clk 0:00:03]}  Rf4 {[%clk 0:00:15]} 76. Ra6 {[%clk 0:00:02]}  Rf3 {[%clk 0:00:14]} 77. Ra8 {[%clk 0:00:02]}  Rc3 {[%clk 0:00:14]} 78. Rg8 {[%clk 0:00:02]}  g3 {[%clk 0:00:14]} 79. Rf8 {[%clk 0:00:02]}  Kd4 {[%clk 0:00:12]} 80. Rd8+ {[%clk 0:00:02]}  Ke4 {[%clk 0:00:11]} 81. Rf8 {[%clk 0:00:03]}  Ra3 {[%clk 0:00:12]} 82. Rf7 {[%clk 0:00:03]}  Kd4 {[%clk 0:00:11]} 83. Rd7+ {[%clk 0:00:03]}  Ke3 {[%clk 0:00:11]} 84. Kxg3 {[%clk 0:00:03]}  e4 {[%clk 0:00:12]} 85. Rb7 {[%clk 0:00:02]}  Ke2+ {[%clk 0:00:11]} 86. Kg2 {[%clk 0:00:01]}  Ra2 {[%clk 0:00:12]} 87. Rb3 {[%clk 0:00:01]}  e3 {[%clk 0:00:12]} 88. Kg3 {[%clk 0:00:01]}  Kd2 {[%clk 0:00:10]} 89. Kf3 {[%clk 0:00:02]}  e2 {[%clk 0:00:10]} 0-1


[Site "https://www.chess.com"]

[Event "Titled Tuesday Blitz February 15 Early 2022"]
[White "Zhu, Jiner"]
[Black "Cori T., Deysi"]
[WhiteFideId "8608059"]
[BlackFideId "3801934"]
[WhiteElo "2281"]
[BlackElo "2350"]
[Result "1-0"]
[Round "09"]
[TimeControl "180+1"]
[Date "2022.02.15"]
[WhiteClock "0:01:01"]
[BlackClock "0:00:02"]

1. e4 {[%clk 0:03:00]}  e6 {[%clk 0:02:58]} 2. d4 {[%clk 0:03:00]}  d5 {[%clk 0:02:59]} 3. Nc3 {[%clk 0:03:00]}  Be7 {[%clk 0:02:58]} 4. Nf3 {[%clk 0:02:54]}  Nf6 {[%clk 0:02:57]} 5. exd5 {[%clk 0:02:46]}  Nxd5 {[%clk 0:02:50]} 6. Ne4 {[%clk 0:02:42]}  O-O {[%clk 0:02:34]} 7. Bd3 {[%clk 0:02:39]}  c5 {[%clk 0:02:29]} 8. dxc5 {[%clk 0:02:36]}  f5 {[%clk 0:02:27]} 9. Ng3 {[%clk 0:02:33]}  Bxc5 {[%clk 0:02:26]} 10. O-O {[%clk 0:02:31]}  Nc6 {[%clk 0:02:25]} 11. Qe2 {[%clk 0:02:18]}  Qf6 {[%clk 0:02:16]} 12. Nh5 {[%clk 0:02:10]}  Qf7 {[%clk 0:01:33]} 13. Nf4 {[%clk 0:02:09]}  h6 {[%clk 0:01:33]} 14. Re1 {[%clk 0:01:50]}  Bd7 {[%clk 0:00:36]} 15. c3 {[%clk 0:01:47]}  Rae8 {[%clk 0:00:34]} 16. Ne5 {[%clk 0:01:39]}  Nxe5 {[%clk 0:00:34]} 17. Qxe5 {[%clk 0:01:39]}  Nf6 {[%clk 0:00:31]} 18. Qxc5 {[%clk 0:01:35]}  g5 {[%clk 0:00:31]} 19. Ne2 {[%clk 0:01:31]}  f4 {[%clk 0:00:26]} 20. Nd4 {[%clk 0:01:28]}  Kg7 {[%clk 0:00:25]} 21. Nf3 {[%clk 0:01:26]}  Qh5 {[%clk 0:00:17]} 22. Ne5 {[%clk 0:01:21]}  Bc6 {[%clk 0:00:06]} 23. Bg6 {[%clk 0:01:15]}  Qh4 {[%clk 0:00:04]} 24. Bxe8 {[%clk 0:01:13]}  Bxe8 {[%clk 0:00:03]} 25. Qe7+ {[%clk 0:01:11]}  Bf7 {[%clk 0:00:04]} 26. b3 {[%clk 0:01:05]}  Ng4 {[%clk 0:00:02]} 27. Nxg4 {[%clk 0:01:02]}  Qxg4 {[%clk 0:00:02]} 28. Ba3 {[%clk 0:01:01]} 1-0


[Site "https://www.chess.com"]

[Event "Titled Tuesday Blitz February 15 Early 2022"]
[White "Bashirli, Saadat"]
[Black "Iljin, Timofey"]
[WhiteFideId "13429990"]
[BlackFideId "14110180"]
[WhiteElo "1173"]
[BlackElo "2396"]
[Result "1-0"]
[Round "10"]
[TimeControl "180+1"]
[Date "2022.02.15"]
[WhiteClock "0:00:14"]
[BlackClock "0:00:04"]

1. d4 {[%clk 0:03:00]}  f5 {[%clk 0:03:00]} 2. Nf3 {[%clk 0:02:55]}  Nf6 {[%clk 0:02:57]} 3. Bg5 {[%clk 0:02:54]}  g6 {[%clk 0:02:49]} 4. Bxf6 {[%clk 0:02:52]}  exf6 {[%clk 0:02:50]} 5. e3 {[%clk 0:02:52]}  Bg7 {[%clk 0:02:50]} 6. Bd3 {[%clk 0:02:52]}  O-O {[%clk 0:02:45]} 7. c4 {[%clk 0:02:52]}  d6 {[%clk 0:02:45]} 8. Nc3 {[%clk 0:02:52]}  Nc6 {[%clk 0:02:38]} 9. O-O {[%clk 0:02:51]}  Re8 {[%clk 0:02:35]} 10. Re1 {[%clk 0:02:50]}  Be6 {[%clk 0:02:32]} 11. d5 {[%clk 0:02:47]}  Ne5 {[%clk 0:02:30]} 12. Nxe5 {[%clk 0:02:46]}  fxe5 {[%clk 0:02:28]} 13. dxe6 {[%clk 0:02:47]}  Rxe6 {[%clk 0:02:27]} 14. e4 {[%clk 0:02:46]}  f4 {[%clk 0:02:26]} 15. Qg4 {[%clk 0:02:43]}  Re8 {[%clk 0:02:22]} 16. Rad1 {[%clk 0:02:39]}  c6 {[%clk 0:02:21]} 17. Bc2 {[%clk 0:02:36]}  Qf6 {[%clk 0:02:19]} 18. Rd2 {[%clk 0:02:31]}  Rad8 {[%clk 0:02:14]} 19. Red1 {[%clk 0:02:31]}  h5 {[%clk 0:02:11]} 20. Qe2 {[%clk 0:02:30]}  Kh7 {[%clk 0:02:06]} 21. f3 {[%clk 0:02:29]}  g5 {[%clk 0:02:06]} 22. Qf2 {[%clk 0:02:26]}  b6 {[%clk 0:02:06]} 23. Kh1 {[%clk 0:02:24]}  g4 {[%clk 0:02:04]} 24. Ne2 {[%clk 0:02:22]}  Qh6 {[%clk 0:02:00]} 25. Ng1 {[%clk 0:02:07]}  Re6 {[%clk 0:01:42]} 26. b3 {[%clk 0:02:00]}  Bf6 {[%clk 0:01:31]} 27. Qe2 {[%clk 0:01:55]}  Qg5 {[%clk 0:01:27]} 28. Qf2 {[%clk 0:01:50]}  Be7 {[%clk 0:01:25]} 29. b4 {[%clk 0:01:41]}  c5 {[%clk 0:01:08]} 30. b5 {[%clk 0:01:39]}  Rg8 {[%clk 0:01:05]} 31. h3 {[%clk 0:01:38]}  Reg6 {[%clk 0:00:54]} 32. Qf1 {[%clk 0:01:29]}  Qh4 {[%clk 0:00:45]} 33. Kh2 {[%clk 0:01:23]}  gxh3 {[%clk 0:00:33]} 34. Nxh3 {[%clk 0:01:21]}  Rg3 {[%clk 0:00:33]} 35. Rf2 {[%clk 0:01:01]}  Qf6 {[%clk 0:00:21]} 36. Qh1 {[%clk 0:00:55]}  Qh6 {[%clk 0:00:12]} 37. Qf1 {[%clk 0:00:50]}  Bh4 {[%clk 0:00:12]} 38. Re2 {[%clk 0:00:47]}  Qg6 {[%clk 0:00:10]} 39. Qg1 {[%clk 0:00:39]}  Qe6 {[%clk 0:00:06]} 40. Qf1 {[%clk 0:00:34]}  Qd7 {[%clk 0:00:05]} 41. Red2 {[%clk 0:00:33]}  R8g6 {[%clk 0:00:04]} 42. Bb1 {[%clk 0:00:31]}  Be7 {[%clk 0:00:03]} 43. a4 {[%clk 0:00:31]}  Qe6 {[%clk 0:00:03]} 44. Bc2 {[%clk 0:00:30]}  Qf7 {[%clk 0:00:04]} 45. a5 {[%clk 0:00:30]}  Qg7 {[%clk 0:00:04]} 46. axb6 {[%clk 0:00:29]}  axb6 {[%clk 0:00:05]} 47. Bd3 {[%clk 0:00:25]}  Qf6 {[%clk 0:00:05]} 48. Ra2 {[%clk 0:00:25]}  Qh4 {[%clk 0:00:04]} 49. Rdd2 {[%clk 0:00:23]}  Qf6 {[%clk 0:00:03]} 50. Ra7 {[%clk 0:00:22]}  Kh6 {[%clk 0:00:03]} 51. Rb7 {[%clk 0:00:19]}  Qh4 {[%clk 0:00:03]} 52. Rxb6 {[%clk 0:00:18]}  Qf6 {[%clk 0:00:03]} 53. Ra6 {[%clk 0:00:17]}  Qg7 {[%clk 0:00:03]} 54. Raa2 {[%clk 0:00:18]}  Bf6 {[%clk 0:00:02]} 55. Rab2 {[%clk 0:00:18]}  Be7 {[%clk 0:00:03]} 56. b6 {[%clk 0:00:17]}  Rxh3+ {[%clk 0:00:03]} 57. gxh3 {[%clk 0:00:16]}  Rg3 {[%clk 0:00:03]} 58. Rg2 {[%clk 0:00:16]}  Bh4 {[%clk 0:00:04]} 59. Rxg3 {[%clk 0:00:14]}  fxg3+ {[%clk 0:00:02]} 60. Kg2 {[%clk 0:00:14]}  Qc7 {[%clk 0:00:02]} 61. bxc7 {[%clk 0:00:14]}  Bg5 {[%clk 0:00:01]} 62. c8=Q {[%clk 0:00:13]}  h4 {[%clk 0:00:02]} 63. Qe6+ {[%clk 0:00:13]}  Kh5 {[%clk 0:00:03]} 64. Qg4+ {[%clk 0:00:13]}  Kh6 {[%clk 0:00:04]} 65. Rb6 {[%clk 0:00:13]}  Kg6 {[%clk 0:00:05]} 66. Rxd6+ {[%clk 0:00:14]}  Kg7 {[%clk 0:00:05]} 67. Qxg5+ {[%clk 0:00:14]}  Kf8 {[%clk 0:00:05]} 68. Qf6+ {[%clk 0:00:13]}  Ke8 {[%clk 0:00:06]} 69. Qe6+ {[%clk 0:00:14]}  Kf8 {[%clk 0:00:04]} 70. Qd7 {[%clk 0:00:13]}  Kg8 {[%clk 0:00:04]} 71. Rc6 {[%clk 0:00:14]} 1-0


[Site "https://www.chess.com"]

[Event "Titled Tuesday Blitz February 15 Early 2022"]
[White "Bon, Michael"]
[Black "Petrova, Irina"]
[WhiteFideId "620696"]
[BlackFideId "14124122"]
[WhiteElo "2436"]
[BlackElo "1988"]
[Result "1-0"]
[Round "10"]
[TimeControl "180+1"]
[Date "2022.02.15"]
[WhiteClock "0:00:32"]
[BlackClock "0:00:54"]

1. e4 {[%clk 0:03:00]}  e5 {[%clk 0:02:57]} 2. f4 {[%clk 0:03:00]}  exf4 {[%clk 0:02:57]} 3. Nc3 {[%clk 0:02:57]}  Ne7 {[%clk 0:02:55]} 4. Bc4 {[%clk 0:02:55]}  d5 {[%clk 0:02:53]} 5. Nxd5 {[%clk 0:02:54]}  Nxd5 {[%clk 0:02:53]} 6. Bxd5 {[%clk 0:02:53]}  Bd6 {[%clk 0:02:52]} 7. Nf3 {[%clk 0:02:47]}  O-O {[%clk 0:02:45]} 8. d4 {[%clk 0:02:45]}  c6 {[%clk 0:02:42]} 9. Bb3 {[%clk 0:02:44]}  Be6 {[%clk 0:02:30]} 10. O-O {[%clk 0:02:38]}  Bxb3 {[%clk 0:02:29]} 11. axb3 {[%clk 0:02:39]}  c5 {[%clk 0:02:14]} 12. e5 {[%clk 0:02:34]}  Bc7 {[%clk 0:02:14]} 13. d5 {[%clk 0:02:34]}  Nd7 {[%clk 0:02:08]} 14. Bxf4 {[%clk 0:02:28]}  Re8 {[%clk 0:01:53]} 15. Re1 {[%clk 0:02:15]}  Nf8 {[%clk 0:01:50]} 16. c4 {[%clk 0:02:12]}  Ng6 {[%clk 0:01:49]} 17. Bg3 {[%clk 0:02:12]}  h5 {[%clk 0:01:32]} 18. h3 {[%clk 0:01:59]}  h4 {[%clk 0:01:31]} 19. Bh2 {[%clk 0:01:58]}  f6 {[%clk 0:01:25]} 20. d6 {[%clk 0:01:49]}  Bb8 {[%clk 0:01:22]} 21. e6 {[%clk 0:01:47]}  Ne5 {[%clk 0:01:20]} 22. Bxe5 {[%clk 0:00:52]}  fxe5 {[%clk 0:01:20]} 23. d7 {[%clk 0:00:42]}  Rxe6 {[%clk 0:01:20]} 24. Qd5 {[%clk 0:00:41]}  Kf7 {[%clk 0:01:12]} 25. Nxe5+ {[%clk 0:00:31]}  Bxe5 {[%clk 0:01:11]} 26. Rxe5 {[%clk 0:00:32]}  Qe7 {[%clk 0:00:54]} 27. Rf1+ {[%clk 0:00:32]} 1-0


[Site "https://www.chess.com"]

[Event "Titled Tuesday Blitz February 15 Early 2022"]
[White "Bures, Vit"]
[Black "Murthy, Pappu"]
[WhiteFideId "309052"]
[BlackFideId "2013401"]
[WhiteElo "2118"]
[BlackElo "1948"]
[Result "1/2-1/2"]
[Round "10"]
[TimeControl "180+1"]
[Date "2022.02.15"]
[WhiteClock "0:00:15"]
[BlackClock "0:00:03"]

1. d4 {[%clk 0:03:00]}  Nf6 {[%clk 0:02:59]} 2. c4 {[%clk 0:03:00]}  c5 {[%clk 0:02:58]} 3. d5 {[%clk 0:03:00]}  b5 {[%clk 0:02:57]} 4. cxb5 {[%clk 0:03:01]}  a6 {[%clk 0:02:57]} 5. bxa6 {[%clk 0:03:02]}  g6 {[%clk 0:02:56]} 6. Nc3 {[%clk 0:03:02]}  Bg7 {[%clk 0:02:55]} 7. e4 {[%clk 0:03:02]}  O-O {[%clk 0:02:54]} 8. a7 {[%clk 0:03:02]}  Rxa7 {[%clk 0:02:44]} 9. Nf3 {[%clk 0:03:01]}  Qa5 {[%clk 0:02:39]} 10. Bd2 {[%clk 0:03:01]}  Qb4 {[%clk 0:02:32]} 11. Qc2 {[%clk 0:02:45]}  d6 {[%clk 0:02:22]} 12. Nb5 {[%clk 0:02:39]}  Qa4 {[%clk 0:01:55]} 13. b3 {[%clk 0:02:38]}  Qxe4+ {[%clk 0:01:54]} 14. Qxe4 {[%clk 0:02:37]}  Nxe4 {[%clk 0:01:54]} 15. Nxa7 {[%clk 0:02:38]}  Bxa1 {[%clk 0:01:53]} 16. Bd3 {[%clk 0:02:26]}  Nxd2 {[%clk 0:01:46]} 17. Kxd2 {[%clk 0:02:25]}  Bf6 {[%clk 0:01:43]} 18. Re1 {[%clk 0:02:20]}  Ba6 {[%clk 0:01:35]} 19. Bxa6 {[%clk 0:02:14]}  Nxa6 {[%clk 0:01:36]} 20. Nc6 {[%clk 0:02:14]}  Re8 {[%clk 0:01:33]} 21. h4 {[%clk 0:02:02]}  h5 {[%clk 0:01:26]} 22. a3 {[%clk 0:01:57]}  Kf8 {[%clk 0:01:25]} 23. Kc2 {[%clk 0:01:54]}  Nc7 {[%clk 0:01:13]} 24. Rd1 {[%clk 0:01:50]}  Ra8 {[%clk 0:01:10]} 25. a4 {[%clk 0:01:50]}  Ra6 {[%clk 0:01:01]} 26. Nb8 {[%clk 0:01:43]}  Ra7 {[%clk 0:00:45]} 27. Nd7+ {[%clk 0:01:42]}  Ke8 {[%clk 0:00:43]} 28. Nxf6+ {[%clk 0:01:43]}  exf6 {[%clk 0:00:42]} 29. Kc3 {[%clk 0:01:36]}  Kd7 {[%clk 0:00:40]} 30. Rd3 {[%clk 0:01:29]}  Na6 {[%clk 0:00:36]} 31. Nd2 {[%clk 0:01:25]}  Nb4 {[%clk 0:00:35]} 32. Rf3 {[%clk 0:01:18]}  f5 {[%clk 0:00:35]} 33. Kc4 {[%clk 0:01:13]}  Ra8 {[%clk 0:00:28]} 34. Re3 {[%clk 0:01:11]}  Na6 {[%clk 0:00:18]} 35. Nb1 {[%clk 0:01:05]}  Rb8 {[%clk 0:00:18]} 36. g3 {[%clk 0:00:55]}  Rb4+ {[%clk 0:00:17]} 37. Kc3 {[%clk 0:00:55]}  Nc7 {[%clk 0:00:13]} 38. Rd3 {[%clk 0:00:50]}  Ke7 {[%clk 0:00:10]} 39. Nd2 {[%clk 0:00:49]}  Kf6 {[%clk 0:00:10]} 40. Nc4 {[%clk 0:00:48]}  Ke7 {[%clk 0:00:05]} 41. Ne3 {[%clk 0:00:40]}  Kd7 {[%clk 0:00:06]} 42. Rd1 {[%clk 0:00:36]}  Re4 {[%clk 0:00:05]} 43. Nc4 {[%clk 0:00:29]}  Ke7 {[%clk 0:00:02]} 44. Rd2 {[%clk 0:00:17]}  Kd7 {[%clk 0:00:03]} 45. Nb6+ {[%clk 0:00:15]} 1/2-1/2


[Site "https://www.chess.com"]

[Event "Titled Tuesday Blitz February 15 Early 2022"]
[White "Coto Mederos, Michel"]
[Black "Kucuksari, Kaan"]
[WhiteFideId "3508528"]
[BlackFideId "6380166"]
[WhiteElo "2427"]
[BlackElo "2305"]
[Result "0-1"]
[Round "10"]
[TimeControl "180+1"]
[Date "2022.02.15"]
[WhiteClock "0:00:22"]
[BlackClock "0:00:34"]

1. d4 {[%clk 0:03:00]}  Nf6 {[%clk 0:02:59]} 2. c4 {[%clk 0:02:59]}  c6 {[%clk 0:02:59]} 3. Nf3 {[%clk 0:02:58]}  d5 {[%clk 0:03:00]} 4. Nc3 {[%clk 0:02:58]}  e6 {[%clk 0:03:00]} 5. cxd5 {[%clk 0:02:57]}  exd5 {[%clk 0:03:00]} 6. Bg5 {[%clk 0:02:57]}  Be7 {[%clk 0:03:00]} 7. e3 {[%clk 0:02:58]}  Bf5 {[%clk 0:02:59]} 8. Bd3 {[%clk 0:02:57]}  Bxd3 {[%clk 0:02:59]} 9. Qxd3 {[%clk 0:02:58]}  O-O {[%clk 0:02:59]} 10. O-O {[%clk 0:02:56]}  Nbd7 {[%clk 0:02:59]} 11. Nd2 {[%clk 0:02:52]}  Re8 {[%clk 0:02:59]} 12. Rab1 {[%clk 0:02:52]}  a5 {[%clk 0:02:55]} 13. Rbe1 {[%clk 0:02:51]}  h6 {[%clk 0:02:45]} 14. Bh4 {[%clk 0:02:48]}  Nf8 {[%clk 0:02:37]} 15. f3 {[%clk 0:02:43]}  Ne6 {[%clk 0:02:37]} 16. Bf2 {[%clk 0:02:33]}  a4 {[%clk 0:02:24]} 17. e4 {[%clk 0:02:01]}  Nh5 {[%clk 0:02:05]} 18. g3 {[%clk 0:01:28]}  Bb4 {[%clk 0:01:33]} 19. e5 {[%clk 0:00:58]}  a3 {[%clk 0:01:24]} 20. b3 {[%clk 0:00:54]}  Qg5 {[%clk 0:00:54]} 21. Kh1 {[%clk 0:00:54]}  Nhf4 {[%clk 0:00:52]} 22. Qe3 {[%clk 0:00:38]}  Nh3 {[%clk 0:00:42]} 23. f4 {[%clk 0:00:36]}  Qf5 {[%clk 0:00:39]} 24. Rc1 {[%clk 0:00:25]}  c5 {[%clk 0:00:35]} 25. Ne2 {[%clk 0:00:23]}  Bxd2 {[%clk 0:00:33]} 26. Qxd2 {[%clk 0:00:22]}  Qe4# {[%clk 0:00:34]} 0-1


[Site "https://www.chess.com"]